Cogmind - Beta 17.1 @@@ ROGUE MODE // 2026.09.17 @ 18:33:40 Player: obl-vn Result: Self-destructed Performance ------------- Evolutions (3) 1500 Regions Visited (8) 1600 Robots Destroyed (163) 815 Value Destroyed (6873) 6873 Prototype IDs (2) 40 Alien Tech Used (0) 0 Bonus (3120) 3120 TOTAL SCORE: 13948 Bonus ------- High Alert Combat Kills 350 Follower Combat Kills 170 Entered Garrisons 600 Used RIF Installer 2000 Cogmind --------- Core Integrity 256/700 Matter 290/300 Energy 100/100 System Corruption 0% Temperature Cool (0) Movement Flying (35) Location -7/Garrison Parts ------- > --- POWER (1) -------- (None) > --- PROPULSION (3) --- VTOL Module > --- UTILITY (7) ------ System Shield Relay Coupler [Swarmer] (21) Relay Coupler [Grunt] (23) Relay Coupler [Sentry] (18) Relay Coupler [Hunter] (18) > --- WEAPON (2) ------- (None) > --- INVENTORY (5) ---- Light Fission Core Relay Coupler [NC] (31) Relay Coupler [Grunt] (31) Relay Coupler [Grunt] (26) Peak State ------------ > --- POWER ------------ Light Ion Engine > --- PROPULSION ------- Cesium-ion Thruster Surge Thruster Improved VTOL Module > --- UTILITY ---------- System Shield Relay Coupler [NC] Relay Coupler [Swarmer] Relay Coupler [Grunt] Relay Coupler [Grunt] Relay Coupler [Sentry] Relay Coupler [Hunter] > --- WEAPON ----------- Improved Datajack Heavy Mace > --- INVENTORY -------- VTOL Module Relay Coupler [NC] Relay Coupler [Grunt] Relay Coupler [Grunt] Relay Coupler [Grunt] [Rating: 40] Favorites ----------- Power Reinforced Ion Engine Engine Reinforced Ion Engine Propulsion Light Treads Treads Light Treads Wheel Wheel Flight Unit Improved VTOL Module Utility Advanced Targeting Computer Device Improved Cooling System Storage Huge Storage Unit Processor Advanced Targeting Computer Hackware Relay Coupler [Grunt] Protection Improved Medium Armor Plating Weapon Advanced Beam Rifle Energy Gun Advanced Beam Rifle Energy Cannon Plasma Cannon Ballistic Gun Flak Gun Ballistic Cannon Assault Cannon Launcher Grenade Launcher Impact Weapon Heavy Mace Slashing Weapon Scythe Special Melee Weapon Improved Datajack Build | -11 -10 -9 -8 -8 -8 -8 -7 -7 ------- Run | Yrd Mat Mat Mat Gar Mat Gar Fac Gar Slots Evolved 6 | . . 2 2 . . . 2 . Power . | . . . . . . . . . Propulsion 1 | . . 1 . . . . . . Utility 5 | . . 1 2 . . . 2 . Weapon . | . . . . . . . . . Parts Attached 95 | 6 8 14 15 12 16 14 1 9 Power 7 | 1 . 2 . 2 . 2 . . Engine 7 | 1 . 2 . 2 . 2 . . Core . | . . . . . . . . . Reactor . | . . . . . . . . . Propulsion 31 | 2 . 5 4 5 8 2 . 5 Treads 22 | 2 . 4 4 4 7 1 . . Leg . | . . . . . . . . . Wheel 1 | . . 1 . . . . . . Hover . | . . . . . . . . . Flight 8 | . . . . 1 1 1 . 5 Utility 35 | 1 5 4 7 3 3 7 1 4 Device 6 | . 1 2 3 . . . . . Storage 5 | 1 2 1 1 . . . . . Processor 3 | . 1 1 1 . . . . . Hackware 12 | . . . . . 1 6 1 4 Protection 9 | . 1 . 2 3 2 1 . . Artifact . | . . . . . . . . . Weapon 22 | 2 3 3 4 2 5 3 . . Energy Gun 8 | 2 . 2 1 1 1 1 . . Energy Cannon 4 | . 1 1 . . 1 1 . . Ballistic Gun 3 | . 1 . 2 . . . . . Ballistic Cannon 1 | . . . . 1 . . . . Launcher 3 | . 1 . . . 1 1 . . Special Weapon . | . . . . . . . . . Impact Weapon 1 | . . . . . 1 . . . Slashing Weapon 1 | . . . 1 . . . . . Piercing Weapon . | . . . . . . . . . Special Melee Weapon 1 | . . . . . 1 . . . Unidentified Prototypes 2 | . . . 1 1 . . . . Corrupted Parts 1 | . . . . . . 1 . . System Corruption 3 | . . . . . . 3 . . Parts Lost 27 | . 2 3 2 3 . 5 . 12 Power 4 | . . 1 1 . . 1 . 1 Propulsion 13 | . . 1 . 1 . 4 . 7 Utility 6 | . 1 . 1 2 . . . 2 Weapon 4 | . 1 1 . . . . . 2 Highest Loss Streak 7 | . 1 2 1 1 . 2 . 7 To Critical Strikes . | . . . . . . . . . Average Backups 19 | 1 8 17 23 24 24 23 5 4 Power 1 | . 2 2 2 1 1 1 . . Propulsion 4 | . . 1 6 6 5 5 1 . Utility 6 | . 2 6 5 7 8 9 4 3 Weapon 7 | . 4 7 9 9 8 5 . . Tool/Special . | . . . . . . . . . Unused Backups 30 | . . 7 5 . 5 9 . 4 Power 4 | . . 2 . . . 1 . 1 Propulsion . | . . . . . . . . . Utility 14 | . . 5 . . . 6 . 3 Weapon 12 | . . . 5 . 5 2 . . Tool/Special . | . . . . . . . . . Average Slot Usage (%) 97 | . 97 94 99 99 100 95 83 90 Engine 9 | . 14 10 8 9 9 9 7 4 Treads 25 | . 28 28 27 27 26 26 . . Flight 1 | . . . . . . . 23 20 Device 10 | . 6 11 17 13 9 8 . . Storage 9 | . 14 11 9 9 9 8 . . Processor 8 | . 4 10 9 9 9 8 . . Hackware 3 | . . . . . . 1 37 50 Protection 9 | . . . 8 13 18 13 . . Energy Gun 8 | . 15 8 5 9 9 7 . . Energy Cannon 3 | . 4 10 1 . 3 6 . . Ballistic Gun 3 | . 8 2 10 . . . . . Ballistic Cannon 2 | . . . . 8 5 . . . Peak Build Rating 40 | 6 8 15 33 39 37 38 33 40 Average Rating 28 | 4 7 12 28 33 35 35 32 36 On Entrance 21 | . 6 8 14 31 36 35 33 32 Avg Prop Armor Cover (%) 20 | . . 20 . . . . . . Naked Turns . | . . . . . . . . . Heaviest Build 116 | 12 49 53 105 113 116 115 7 7 Greatest Support 60 | 40 40 60 60 60 60 60 13 15 Greatest Overweight (x) 5 | . 1 5 1 1 1 1 . . Average Overweight (x) . | . . . . 1 1 . . . Largest Inventory Capacity 25 | 8 20 20 25 25 25 25 5 5 Average Capacity 21 | 7 17 20 24 25 25 24 5 5 Most Carried 25 | 2 12 20 25 25 25 25 5 5 Average Carried 20 | 1 8 17 23 24 24 23 5 4 Final Capacity 25 | 8 20 20 25 25 25 5 5 5 Final Carried 25 | 2 11 19 25 25 25 5 5 4 Class Distribution -------------------- 43% | Mutant 34% | Scavenger-Mutant 14% | Bothacker-Mutant 4% | Bothacker-Sprinter Dominant Class ---------------- Mutant | -10/Materials Mutant | -9/Materials Mutant | -8/Materials Mutant | -8/Garrison Scavenger-Mutant | -8/Materials Bothacker-Mutant | -8/Garrison Bothacker-Sprinter | -7/Factory Botlord-Sprinter | -7/Garrison Resources | -11 -10 -9 -8 -8 -8 -8 -7 -7 ----------- Run | Yrd Mat Mat Mat Gar Mat Gar Fac Gar Matter Collected 2628 | 174 334 164 655 330 470 291 . 210 Remotely . | . . . . . . . . . Salvage Created 5375 | . 544 592 1398 563 1110 964 19 185 Parts 288 | . 32 36 72 24 74 46 . 4 Haulers Intercepted 8 | . 2 1 2 . 3 . . . Recyclers Shooed 5 | . . 3 1 . 1 . . . Parts Field Recycled . | . . . . . . . . . Retrieved Matter . | . . . . . . . . . Parts Self-Destructed . | . . . . . . . . . Prevented . | . . . . . . . . . Parts Restored . | . . . . . . . . . Kills | -11 -10 -9 -8 -8 -8 -8 -7 -7 ------- Run | Yrd Mat Mat Mat Gar Mat Gar Fac Gar Combat Hostiles Destroyed 133 | . 18 13 32 16 28 21 . 5 Melee 5 | . . . . . 3 1 . 1 Guns 74 | . 14 4 28 10 10 8 . . Cannons 29 | . 2 6 2 6 4 9 . . AOE 16 | . 2 2 . . 11 1 . . Classes Destroyed 17 | . 4 3 5 1 3 1 . . Worker 1 | . . 1 . . . . . . Builder 3 | . . . 2 . 1 . . . Tunneler 1 | . . . 1 . . . . . Hauler 8 | . 2 1 2 . 3 . . . Recycler 6 | . . 2 2 . 2 . . . Mechanic 1 | . . . . . 1 . . . Operator 6 | . . . 1 . 4 . 1 . Watcher 4 | . 1 . 1 . 2 . . . Swarmer 43 | . 11 7 10 3 9 3 . . Cutter 4 | . . . . . 3 . . 1 Grunt 52 | . 7 . 13 11 9 8 . 4 Brawler 3 | . . . . 2 1 . . . Duelist 1 | . . . 1 . . . . . Sentry 16 | . . 6 4 . 5 1 . . Specialist 4 | . . . 4 . . . . . Hunter 4 | . . . . . 1 3 . . Programmer 6 | . . . . . . 6 . . Best Kill Streak 8 | . 3 3 8 3 7 4 1 3 Combat Bots Only 7 | . 3 3 5 3 7 4 . 3 Max Kills in Single Turn 3 | . 2 2 2 1 3 1 1 1 Gunslinging 1 | . 1 . 1 . . . . . Exploded 3 | . 1 1 . . 3 1 . . Melee 1 | . . . . . 1 1 . 1 Uniques/NPCs Destroyed . | . . . . . . . . . Combat | -11 -10 -9 -8 -8 -8 -8 -7 -7 -------- Run | Yrd Mat Mat Mat Gar Mat Gar Fac Gar Hostile Shots Fired 689 | . 69 80 132 70 113 103 7 115 Missed 201 | . 23 21 35 15 27 30 6 44 Hits 488 | . 46 59 97 55 86 73 1 71 Melee 10 | . . . . . 9 . . 1 Projectile 478 | . 46 59 97 55 77 73 1 70 Critical Strikes 26 | . 1 2 7 1 9 4 . 2 Damage Taken 6047 | . 430 674 1051 584 1211 1113 33 951 Core 893 | . 49 130 155 39 37 39 . 444 Absorbed by Shields 612 | . . . 310 142 . 8 . 152 Regen/Repaired (Parts) 494 | . . 130 . . 364 . . . Core Remaining (%) 74 | 100 80 67 . . . 50 . . Volleys Fired 402 | . 49 42 84 52 109 66 . . Largest 2 | . 2 2 2 2 2 2 . . Hottest 141 | . 80 110 110 98 141 141 . . Shots Fired 689 | . 87 80 158 90 162 112 . . Gun 430 | . 66 39 120 51 103 51 . . Cannon 238 | . 17 38 38 39 50 56 . . Launcher 21 | . 4 3 . . 9 5 . . Special . | . . . . . . . . . Kinetic 187 | . 27 3 78 39 40 . . . Thermal 442 | . 17 74 80 51 113 107 . . Explosive 16 | . 4 3 . . 9 . . . Electromagnetic 44 | . 39 . . . . 5 . . Robot Hit Streak 20 | . 10 18 19 15 16 20 . . Robot Miss Streak 8 | . 3 3 8 4 3 2 . . Penetration Max . | . . . . . . . . . Secondary Targets 8 | . 2 . 6 . . . . . Max Gunslinging Chain 1 | . 1 . 1 . . . . . Shots Hit Robots 503 | . 50 58 126 54 110 74 10 21 Core Hits 280 | . 26 21 125 27 52 28 . 1 Critical Kills 2 | . . . 1 . . 1 . . Critical Parts Destroyed 2 | . 1 . . . . . . 1 Critical Strikes 20 | . 2 1 3 3 6 4 . 1 Burn 10 | . . 1 2 1 3 3 . . Meltdown 2 | . . . 1 . . 1 . . Destroy 1 | . 1 . . . . . . . Blast 5 | . . . . 2 3 . . . Corrupt 1 | . 1 . . . . . . . Smash 1 | . . . . . . . . 1 Melee Attacks 99 | . . . 4 13 4 24 14 40 Impact 61 | . . . . . 2 22 2 35 Slashing 17 | . . . 4 13 . . . . Piercing . | . . . . . . . . . Sneak Attacks 11 | . . . . . 1 1 7 2 Combat Hostiles 1 | . . . . . . . 1 . Follow-up Attacks . | . . . . . . . . . Damage Inflicted 11410 | . 975 995 2414 1218 3117 1840 82 769 Guns 5333 | . 565 365 1838 520 1420 625 . . Cannons 3712 | . 124 530 541 698 810 1009 . . Explosions 1383 | . 277 84 . . 851 171 . . Melee 886 | . . . . . . 35 82 769 Ramming 96 | . 9 16 35 . 36 . . . Kinetic 2949 | . 227 26 1316 698 682 . . . Thermal 5758 | . 124 869 1063 520 1548 1634 . . Explosive 1212 | . 277 84 . . 851 . . . Electromagnetic 509 | . 338 . . . . 171 . . Impact 886 | . . . . . . 35 82 769 Slashing . | . . . . . . . . . Piercing . | . . . . . . . . . Highest Corruption 5 | . . . . . . 5 . . Average Corruption 4 | . . . . . . 4 . . Corruption Purged . | . . . . . . . . . Corruption Blocked . | . . . . . . . . . Effects 18 | . . . . . . 18 . . Message Errors 9 | . . . . . . 9 . . Energy Discharges 5 | . . . . . . 5 . . Data Loss (minor) 2 | . . . . . . 2 . . Misfires 2 | . . . . . . 2 . . Overload Shots . | . . . . . . . . . Overflow Damage 221 | . . 22 5 4 27 17 47 99 Projectiles 43 | . . 14 5 4 3 17 . . Explosions 24 | . . . . . 24 . . . Melee 154 | . . 8 . . . . 47 99 Knockbacks 12 | . . . 1 6 5 . . . Impact 1 | . . . 1 . . . . . Kinetic 11 | . . . . 6 5 . . . Secondary . | . . . . . . . . . Self-Inflicted Damage 125 | . . . . . 42 83 . . Shots 5 | . . . . . 2 3 . . Rammed 5 | . 1 1 2 . 1 . . . Targets Rammed 8 | . 1 1 2 . 4 . . . Kicked . | . . . . . . . . . Crushed 3 | . . . . . 3 . . . Highest Temperature 206 | . 80 204 206 14 105 95 . . Average Temperature 44 | . 21 49 90 9 29 27 . . Received Heat Transfer 1867 | . 108 189 383 294 441 193 18 241 Effects 1 | . . . 1 . . . . . Energy Bleed 1 | . . . 1 . . . . . Siege Activations . | . . . . . . . . . Martial Activations . | . . . . . . . . . Shielding Activations . | . . . . . . . . . Robots Disrupted . | . . . . . . . . . Combat Hostiles . | . . . . . . . . . Robots Corrupted 6 | . . 1 . . . . 1 4 Combat Hostiles 4 | . . . . . . . . 4 Parts Fried 4 | . . 1 . . . . 1 2 Impact Corruptions 9 | . . 1 . . . . 2 6 Robots Melted 5 | . . 1 2 . . 2 . . Combat Hostiles 5 | . . 1 2 . . 2 . . Parts Melted 36 | . . 7 11 . 4 14 . . Heat Transferred 12362 | . 259 2183 2553 1036 3099 3232 . . Parts Sabotaged . | . . . . . . . . . Parts Stolen . | . . . . . . . . . Parts Stripped . | . . . . . . . . . Power Chain Reactions 2 | . . . . . . 2 . . Alert | -11 -10 -9 -8 -8 -8 -8 -7 -7 ------- Run | Yrd Mat Mat Mat Gar Mat Gar Fac Gar Maximum Alert Level 3 | . . . 1 2 1 3 2 2 Low Security (%) 51 | 100 100 100 37 . 74 13 . . Level 1 27 | . . . 62 38 25 16 41 45 Level 2 17 | . . . . 61 . 48 58 54 Level 3 3 | . . . . . . 21 . . Level 4 . | . . . . . . . . . Level 5 . | . . . . . . . . . High Security . | . . . . . . . . . Max Security . | . . . . . . . . . Peak Influence 841 | . 192 163 324 688 379 841 458 636 Initial 441 | . . 76 61 200 335 68 441 196 Average 246 | . 86 44 207 472 146 493 383 423 Influence Increases 4780 | . 549 446 844 518 835 843 120 625 Destroy 0b10 Robot/C 2820 | . 360 260 640 320 560 420 40 220 Destroy 0b10 Robot/NC 150 | . 15 20 45 . 60 . 10 . Destroy Leader 496 | . 76 72 126 20 140 30 12 20 Allied During Kill 39 | . . . . . . . 10 29 Successful Hack 129 | . 12 9 14 28 20 14 18 14 Disable Machine 60 | . 15 15 . . 15 . 15 . Anti-Garrison Action 600 | . . . . 100 . 300 . 200 Destroy Structure 156 | . 11 25 4 50 40 19 . 7 Partial Spotted 15 | . . . . . . . 15 . Lose Combat Pursuer 315 | . 60 45 15 . . 60 . 135 Influence Decreases 4199 | . 367 483 680 139 1418 107 680 325 Entered New Map 1174 | . . 106 84 109 353 37 400 85 Time Decay 1945 | . 347 347 521 . 640 . 90 . Lost Part 270 | . 20 30 20 30 . 50 . 120 Lost Ally 180 | . . . . . . 20 40 120 Purge Threat 630 | . . . 55 . 425 . 150 . Squads Dispatched 16 | . 4 . 4 . 4 . 4 . Investigation 6 | . 3 . 1 . . . 2 . Extermination . | . . . . . . . . . Reinforcement 8 | . 1 . 3 . 4 . . . Assault . | . . . . . . . . . Garrison 2 | . . . . . . . 2 . Intercept . | . . . . . . . . . Searches Triggered . | . . . . . . . . . Construction Impeded 1 | . . . 1 . . . . . Haulers Reinforced . | . . . . . . . . . Active Scanning Responses . | . . . . . . . . . Cargo Convoy Interrupts . | . . . . . . . . . Stealth | -11 -10 -9 -8 -8 -8 -8 -7 -7 --------- Run | Yrd Mat Mat Mat Gar Mat Gar Fac Gar Distress Signals 11 | . 2 1 8 . . . . . Communications Jammed . | . . . . . . . . . Distress Signals . | . . . . . . . . . Times Spotted 236 | . 33 22 50 16 59 25 6 25 Peak Tracking Total 6 | . 5 4 6 3 6 5 3 6 Tactical Retreats 15 | . 3 2 1 . . 3 . 6 Traps | -11 -10 -9 -8 -8 -8 -8 -7 -7 ------- Run | Yrd Mat Mat Mat Gar Mat Gar Fac Gar Traps Triggered 17 | . 3 . 2 7 . . . 5 Indirectly . | . . . . . . . . . Trap Hack Attempts . | . . . . . . . . . Triggered . | . . . . . . . . . Disarmed . | . . . . . . . . . Reprogrammed . | . . . . . . . . . Reused . | . . . . . . . . . Traps Extracted . | . . . . . . . . . Installed . | . . . . . . . . . Triggered . | . . . . . . . . . Machines | -11 -10 -9 -8 -8 -8 -8 -7 -7 ---------- Run | Yrd Mat Mat Mat Gar Mat Gar Fac Gar Machines Disabled 18 | . 1 1 . 2 1 8 1 4 Max in Single Turn 1 | . 1 1 . 1 1 1 1 1 Garrison Relay 10 | . . . . 2 . 4 . 4 Machines Repaired . | . . . . . . . . . Machines Dismantled . | . . . . . . . . . Machines Sabotaged . | . . . . . . . . . Overloaded Fab Kills . | . . . . . . . . . Hacking | -11 -10 -9 -8 -8 -8 -8 -7 -7 --------- Run | Yrd Mat Mat Mat Gar Mat Gar Fac Gar Machines Accessed 34 | . 5 3 6 2 9 2 5 2 Terminals 26 | . 5 1 4 2 6 2 4 2 Fabricators . | . . . . . . . . . Repair Stations 2 | . . 1 . . 1 . . . Recycling Units . | . . . . . . . . . Scanalyzers 3 | . . 1 1 . 1 . . . Garrison Access 3 | . . . 1 . 1 . 1 . Total Hacks 88 | . 15 8 16 3 24 3 15 4 Successful 46 | . 8 6 8 2 14 1 6 1 Failed 40 | . 7 1 7 1 10 2 9 3 Catastrophic 7 | . . . . . 1 1 3 2 Database Lockouts 2 | . . 1 1 . . . . . Manual 43 | . 14 3 7 . 9 . 8 2 Terminals 70 | . 15 4 11 3 17 3 13 4 Fabricators . | . . . . . . . . . Repair Stations 4 | . . 2 . . 2 . . . Recycling Units . | . . . . . . . . . Scanalyzers 8 | . . 2 3 . 3 . . . Garrison Access 6 | . . . 2 . 2 . 2 . Terminal Hacks 17 | . 1 1 3 2 6 1 2 1 Branch Access Points 1 | . . 1 . . . . . . Emergency Access Points 1 | . . . . 1 . . . . Unreport Threat 4 | . . . 1 . 3 . . . Locate Traps 2 | . . . . . 1 . 1 . Recall Investigation 1 | . . . . . 1 . . . Hauler Manifests 1 | . 1 . . . . . . . Registered Components 1 | . . . . . . . 1 . Zone Layout 3 | . . . 2 . 1 . . . Garrison Registry 2 | . . . . 1 . 1 . . Patrol Navigation 1 | . . . . . . . . 1 Fabricator Hacks . | . . . . . . . . . Repair Station Hacks 4 | . . 2 . . 2 . . . Scan Component 2 | . . 1 . . 1 . . . Repair 2 | . . 1 . . 1 . . . Recycling Unit Hacks . | . . . . . . . . . Scanalyzer 4 | . . 1 1 . 2 . . . Retrieve Study 4 | . . 1 1 . 2 . . . Garrison Access Hacks 4 | . . . 1 . 2 . 1 . Unlock Access 3 | . . . 1 . 1 . 1 . Coupler Status 1 | . . . . . 1 . . . Unauthorized Hacks 17 | . 7 2 3 . 2 . 3 . Terminals 16 | . 7 2 3 . 2 . 2 . Botnet 5 | . 2 1 . . 1 . 1 . Operators 2 | . . . . . 1 . 1 . Skim 9 | . 5 1 3 . . . . . Fabricators . | . . . . . . . . . Repair Stations . | . . . . . . . . . Recycling Units . | . . . . . . . . . Scanalyzers . | . . . . . . . . . Garrison Access 1 | . . . . . . . 1 . Reprogram 1 | . . . . . . . 1 . Data Cores Recovered . | . . . . . . . . . Used . | . . . . . . . . . Hacking Detections 28 | . 4 3 6 2 6 1 4 2 Full Trace Events 2 | . . . . . 1 . 1 . Feedback Events . | . . . . . . . . . Feedback Blocked . | . . . . . . . . . Robot Schematics Acquired . | . . . . . . . . . Robots Built . | . . . . . . . . . Authchips . | . . . . . . . . . Time . | . . . . . . . . . Total Robot Build Rating . | . . . . . . . . . Part Schematics Acquired . | . . . . . . . . . Parts Built . | . . . . . . . . . Authchips . | . . . . . . . . . Time . | . . . . . . . . . Total Part Build Rating . | . . . . . . . . . Part Studies Acquired 4 | . . 1 1 . 2 . . . Parts Repaired 2 | . . 1 . . 1 . . . Time 64 | . . 26 . . 38 . . . Parts Recycled . | . . . . . . . . . Recycled Matter . | . . . . . . . . . Retrieved Matter . | . . . . . . . . . Retrieved Components . | . . . . . . . . . Parts Scanalyzed . | . . . . . . . . . Part Schematics Acquired . | . . . . . . . . . Parts Damaged . | . . . . . . . . . Bothacking | -11 -10 -9 -8 -8 -8 -8 -7 -7 ------------ Run | Yrd Mat Mat Mat Gar Mat Gar Fac Gar Used RIF Installer 4 | . . . . 1 . 2 . 1 Zone Cloak 1 | . . . . . . 1 . . Patrol Navigation 1 | . . . . . . . . 1 Structural Interface 1 | . . . . . . 1 . . Robots Hacked 9 | . . . . . 1 1 5 2 Non-combat 2 | . . . . . 1 . 1 . Combat 7 | . . . . . . 1 4 2 Robot Hacks Applied 10 | . . . . . 1 1 6 2 parse_system 1 | . . . . . . . 1 . purge_threat 1 | . . . . . . . 1 . formatsys_low 1 | . . . . . 1 . . . formatsys_high 7 | . . . . . . 1 4 2 Relay Couplers Released 35 | . . . . 8 . 13 . 14 Machine Destruction 35 | . . . . 8 . 13 . 14 Attached 11 | . . . . . 1 6 . 4 Fabnet Peak Effective % . | . . . . . . . . . Robots Rewired . | . . . . . . . . . Allies Hacked . | . . . . . . . . . Hacks Repelled . | . . . . . . . . . Allies | -11 -10 -9 -8 -8 -8 -8 -7 -7 -------- Run | Yrd Mat Mat Mat Gar Mat Gar Fac Gar Total Allies 10 | . . . . . 1 1 6 2 Largest Group 4 | . . . . . 1 1 4 4 Highest-Rated Group 96 | . . . . . 13 15 96 96 Highest-Rated Ally 32 | . . . . . 13 15 32 32 Total Orders 52 | . . . . . 9 4 3 36 STAY 25 | . . . . . 1 3 2 19 ROAM 1 | . . . . . 1 . . . FOLLOW 24 | . . . . . 5 1 1 17 AID 2 | . . . . . 2 . . . Ally Attacks 50 | . . . . . . 1 13 36 Total Damage 843 | . . . . . . 26 189 628 Kills 9 | . . . . . . . 3 6 Allies Corrupted . | . . . . . . . . . Allies Melted . | . . . . . . . . . Intel | -11 -10 -9 -8 -8 -8 -8 -7 -7 ------- Run | Yrd Mat Mat Mat Gar Mat Gar Fac Gar Active Infowar (turns) 1211 | . 520 550 137 4 . . . . Structural 1211 | . 520 550 137 4 . . . . Robot Analysis Total . | . . . . . . . . . Derelict Logs Recovered . | . . . . . . . . . Drone Launches . | . . . . . . . . . Drone Recoveries . | . . . . . . . . . Exploration | -11 -10 -9 -8 -8 -8 -8 -7 -7 ------------- Run | Yrd Mat Mat Mat Gar Mat Gar Fac Gar Turns Passed 9415 | 64 1140 958 1731 888 2398 1531 189 516 Spaces Moved 4166 | 39 433 341 648 321 969 594 168 653 Core 8 | 8 . . . . . . . . Treads 3282 | 31 433 331 648 321 969 549 . . Legs . | . . . . . . . . . Wheels 10 | . . 10 . . . . . . Hover . | . . . . . . . . . Flight 866 | . . . . . . 45 168 653 Fastest Speed 29 | 50 160 155 160 203 200 29 29 29 Average Speed 164 | 137 213 181 201 203 200 188 29 29 Slowest Speed 320 | 160 240 320 216 203 203 203 29 35 Overloaded Moves . | . . . . . . . . . Propulsion Burnouts . | . . . . . . . . . Robots Hopped . | . . . . . . . . . Potential Cave-ins . | . . . . . . . . . Cave-ins Triggered . | . . . . . . . . . Exploration Rate (%) 48 | 3 93 36 49 59 55 68 7 66 Regions Visited 8 Branch Regions . Pre-discovered Areas . | . . . . . . . . . Known Exits Taken 4 | . . 1 1 . 1 . 1 . Unknown Exits Taken 2 | 1 1 . . . . . . . Scrap Searched . | . . . . . . . . . Spaces Dug 19 | . . . 4 . 2 11 . 2 Terrain Destroyed 100 | . 23 22 4 . 35 14 . 2 Melee 18 | . . . 4 . 1 11 . 2 Projectile 11 | . . . . . 11 . . . AOE 71 | . 23 22 . . 23 3 . . Terrain Rammed . | . . . . . . . . . Walls Destroyed . | . . . . . . . . . Machines Disabled . | . . . . . . . . . Actions | -11 -10 -9 -8 -8 -8 -8 -7 -7 --------- Run | Yrd Mat Mat Mat Gar Mat Gar Fac Gar Total 5902 | 47 557 606 912 448 1255 863 303 911 Wait 821 | . 45 169 106 19 110 96 120 156 Move 4159 | 38 432 340 648 320 969 592 167 653 Hop . | . . . . . . . . . Pick Up 103 | 3 13 22 24 8 13 19 . 1 Fast Attach 28 | 5 1 3 1 . 5 5 1 7 Attach 36 | 1 3 3 5 5 2 16 . 1 Detach 3 | . . . 1 . . 2 . . Swap 83 | . 10 11 18 10 22 11 . 1 Drop 94 | . 3 15 19 8 17 32 . . Fire 402 | . 49 42 84 52 109 66 . . Melee 99 | . . . 4 13 4 24 14 40 Ram . | . . . . . . . . . Kick . | . . . . . . . . . Crush 8 | . 1 1 2 . 4 . . . Escape Stasis 65 | . . . . 13 . . . 52 Rewire 1 | . . . . . . . 1 . Trap . | . . . . . . . . . Miscellaneous . | . . . . . . . . . Route ------- -11/Scrapyard -10/Materials (discovered 5 exits: *Mat x3 / *Min / [*Sub]) -9/Materials (discovered 4 exits: *Mat x3 / Min) -8/Materials (discovered 3 exits: *Fac x2 / Gar) -8/Garrison (discovered 3 exits: *Mat x3) -8/Materials (discovered 2 exits: *Fac / Gar) -8/Garrison (discovered 3 exits: *Fac x3) -7/Factory (discovered 2 exits: [*Fac] / Gar) -7/Garrison (discovered 1 exit: [*Fac]) History --------- Turn | Location | Event 7 | -11/Scrapyard | Discovered new exit (range 16) 65 | -11/Scrapyard | Entered Materials 183 | -10/Materials | Discovered new exit (range 5) 309 | -10/Materials | Build established: Mutant 566 | -10/Materials | Discovered new exit (range 4) 645 | -10/Materials | Discovered new exit (range 10) 714 | -10/Materials | Learned location of 1 exit from Storage 789 | -10/Materials | Identified exit to Mines 853 | -10/Materials | Learned 4 Recycling zone layouts 861 | -10/Materials | Discovered new exit (range 13) 908 | -10/Materials | Learned Storage stockpile data 951 | -10/Materials | Learned 4 Subcaves zone layouts 984 | -10/Materials | Learned location of 2 exits from Materials 1009 | -10/Materials | Learned Recycling recycling unit intel 1046 | -10/Materials | Loaded intel: 1 repair station location 1150 | -10/Materials | Learned location of 1 exit from Storage 1205 | -10/Materials | Entered another Materials area 1205 | -9/Materials | Evolved 2 slots: Propulsion x1, Utility x1 1206 | -9/Materials | Identified exit to Materials 1207 | -9/Materials | Identified exit to Mines 1533 | -9/Materials | Central database locked down 1584 | -9/Materials | Repaired Lgt. Treads+ 2163 | -9/Materials | Entered another Materials area 2163 | -8/Materials | Evolved 2 slots: Utility x2 2347 | -8/Materials | Build established: Scavenger-Mutant 2810 | -8/Materials | Central database locked down 2816 | -8/Materials | Discovered new exit (range 16) 3009 | -8/Materials | Build established: Mutant 3364 | -8/Materials | Discovered new exit (range 16) 3392 | -8/Materials | Build established: Scavenger-Mutant 3704 | -8/Materials | Build established: Mutant 3894 | -8/Materials | Identified exit to Garrison 3894 | -8/Materials | Entered Garrison 4014 | -8/Garrison | Triggered checkpoint 4059 | -8/Garrison | Garrison Relay disabled 4120 | -8/Garrison | Triggered checkpoint 4258 | -8/Garrison | Triggered checkpoint 4397 | -8/Garrison | Discovered new exit (range 10) 4412 | -8/Garrison | Triggered checkpoint 4463 | -8/Garrison | Discovered new exit (range 61) 4463 | -8/Garrison | Discovered new exit (range 49) 4463 | -8/Garrison | Discovered new exit (range 14) 4498 | -8/Garrison | Garrison Relay disabled 4634 | -8/Garrison | Triggered checkpoint 4729 | -8/Garrison | Installed Relay Interface Framework 4782 | -8/Garrison | Entered Materials 5084 | -8/Materials | Repaired Arm. Treads+? 5128 | -8/Materials | Destroyed 7 combat bots 5349 | -8/Materials | Build established: Scavenger-Mutant 5393 | -8/Materials | Discovered new exit (range 13) 7180 | -8/Materials | Identified exit to Garrison 7180 | -8/Materials | Entered Garrison 7328 | -8/Garrison | Triggered checkpoint 7384 | -8/Garrison | Garrison Relay disabled 7435 | -8/Garrison | Garrison Relay disabled 7546 | -8/Garrison | Triggered checkpoint 7678 | -8/Garrison | Build established: Bothacker-Mutant 7770 | -8/Garrison | Discovered new exit (range 79) 7770 | -8/Garrison | Discovered new exit (range 14) 7770 | -8/Garrison | Discovered new exit (range 64) 7830 | -8/Garrison | Triggered checkpoint 8017 | -8/Garrison | Expanded RIF knowledge: Structural Interface 8061 | -8/Garrison | Garrison Relay disabled 8142 | -8/Garrison | Triggered checkpoint 8322 | -8/Garrison | Triggered checkpoint 8494 | -8/Garrison | Expanded RIF knowledge: Zone Cloak 8540 | -8/Garrison | Garrison Relay disabled 8542 | -8/Garrison | Triggered checkpoint 8711 | -8/Garrison | Entered Factory 8711 | -7/Factory | Evolved 2 slots: Utility x2 8728 | -7/Factory | Discovered new exit (range 14) 8798 | -7/Factory | Garrison activated, responded to threat 8809 | -7/Factory | Identified exit to Garrison 8900 | -7/Factory | Entered Garrison 8900 | -7/Garrison | Accompanied by 4 allies 8903 | -7/Garrison | Garrison Relay disabled 8929 | -7/Garrison | Build established: Bothacker-Sprinter 8942 | -7/Garrison | Triggered checkpoint 8984 | -7/Garrison | Garrison Relay disabled 9027 | -7/Garrison | Triggered checkpoint 9056 | -7/Garrison | Garrison Relay disabled 9070 | -7/Garrison | Expanded RIF knowledge: Patrol Navigation 9078 | -7/Garrison | Triggered checkpoint 9168 | -7/Garrison | Triggered checkpoint 9195 | -7/Garrison | Garrison Relay disabled 9205 | -7/Garrison | Discovered new exit (range 15) 9232 | -7/Garrison | Triggered checkpoint 9289 | -7/Garrison | Lost 4 parts (1p2n1w) 9404 | -7/Garrison | Core integrity fell below 50% 9416 | -7/Garrison | Self-destructed Last Messages --------------- area. 09371_ Field strength at 88. 09372_ Field strength at 76. 09373_ Field strength at 64. 09374_ Field strength at 52. 09375_ Field strength at 40. 09376_ Field strength at 28. 09377_ Field strength at 12. 09378_ Stasis field depleted. 09381_ VTOL Module+ destroyed. 09386_ Imp. VTOL Module destroyed. 09387_ ALERT: Dispatching investigation squad to Factory. 09392_ Relay Coupler [Grunt] destroyed. 09394_ Relay Coupler [NC] destroyed. 09399_ S-27 Virus destroyed. 09401_ VTOL Module+ destroyed. 09402_ Acquired VTOL Module+. 09404_ VTOL Module+ destroyed. 09415_ Hvy. Mace destroyed. Map ----- +----------------------------------------------------+ | ????????????????????????" ####???????????????????? | | ????????????????????????" ????????????????????? | | ????????????????????????" ????????????????????? | | ???????????????????????? ?????????????????????? | | ????????????????????????# ?????????????????????? | | ????????????????????????# #?????????????????????? | | ????????????????????????# #?????????????????????? | | ??????????????????????### #?????????????????????? | | ??????????????????????#"# #?????????????????????? | | ??????????????????????# ! #?????????????????????? | | ??????????????????????#"!! #?????????????????????? | | ??????????????????????#" #?????????????????????? | | ????????????????####??#"# #?????????????????????? | | ????????????????#""#??### #?????????????????????? | | ##??????????????# T#????# #?????????????????????? | | "#??????????????# "#????# #?????????????????????? | | ##??????????????# ##??### #?????????????????????? | | #??????????????# ##### #?????????????????????? | | #??????????????# + #?????????????????????? | | +#??????????????# ##### #??????????????????#### | | #??????????????# #???### #??????????????????# | | #????????????###+####### #################### | | +#######??????# | | #??????# ss | | #??????# ! | | #??????#^%=#######@s################### ### | | +### #??????# ^%!#????#%*#?????????????????# ##? | | #?# #??????# ##????# #????????????????## ## | | #?# #??????# ####### #????????????????#"! "" | | #?# #??????# + #????????????????#! " | | #?# ######## ####### #????????????????#"! " | | ### ## ##*= #?????# #????????????????#" " | | ##T ## ##[%=#?????# #????????????????#""""" | | ### ^^=![%####### #????????????????###### | | ! + ^ * %![! #?????????????????????? | | #### %*^==!= #?????????????????????? | | ???# ## ##[=%##########?????????????????????? | | ???# ## ##[ %###????????????????????????????? | | ?? %! = #????????????????????????????? | | ?# ] #????????????????????????????? | | ?# #????????????????????????????? | | ?# #????????????????????????????? | | ?### ## ## ###????????????????????????????? | | ???# ## ## #??????????????????????????????? | | ?? #####??????????????????????????? | | ?? + #??????????????????????????? | | ???# ### #??????????????????????????? | | ???## ## ## #?# ########???????????????????? | | ????# ## ?# #?# ????????????? | | ????? ???###?# #?# ########???????????????????? | +----------------------------------------------------+ Best States ------------- Heat Dissipation 58 Energy Generation 12 Energy Capacity 265 Matter Stores 300 Matter Capacity 300 Sight Range 16 Terrain Scan Density 10 Armor Coverage 600 Utility Shielding 33 Evasion (%) 64 Targeting Accuracy 16 Recoil Reduction 3 Defensive Hacking 10 Relay Coupler Types 5 Relay Coupler Value 127 Item Schematics ----------------- None Robot Schematics ------------------ None Fabricated ------------ Nothing Repaired ---------- Lgt. Treads | 7% | -9/Materials Arm. Treads | 46% | -8/Materials Studied --------- Lgt. Treads | -9/Materials | Hacked Arm. Treads | -8/Materials | Hacked VTOL Module | -8/Materials | Hacked Lgt. Ion Engine | -8/Materials | Hacked Alien Tech Used ----------------- None Achievements -------------- None Challenges ------------ None Game ------ Seed NetworkNeutronJoltstriker Manual? 0 Play Time 01:41:16 Cumulative 277.5 hours Start 2026.09.17 @ 15:03:05 End 2026.09.17 @ 18:33:40 Sessions 3 Manual Loads 0 Difficulty Rogue Special Mode None Game No. 186 Rogue 186 Adventurer 0 Explorer 0 Win Type - Total 6 Types 2/0/2/1/0/0/0/1/0/0 Lore% 63 Gallery% 75 Achievement% 59 Wizard Run 0 Options --------- Layout 2 ASCII 0 Keyboard 0 Movement Mouse Keybinds 0 Fullscreen 1 Font 32/Tamsyn Map View 50x44 Zoom Use 0% Tactical HUD 1 Map Filters NONE Filters NONE Steam 1 RUN: 917e270e-5a5e-4960-994f-5db1b9f35af8